Workbook

Sheet INSTRUCTIONS
B2: Welcome to the CNR Instructions to fill out the graduate student RA and TA stipends
B5: Step 1 | C5: Select appointment dates
B6: The appointment type allows you to choose between different start and end dates of the appointment.
B7: Sometimes we want students to start in the summer prior to the fall and sometimes we want them to start in the fall but pay them through the following summer.
B8: Please note the maximum duration for an appointment is 52 weeks.
B10: Your different options are:
B11: 1 Year Appointment from January to January
B12: 1 Year Appointment from May to May
B13: 1 Year Appointment from August to August
B14: 1 Year Appointment from December to December
B16: For Teaching Assistants ONLY - you can also select by spring or fall semesters
B18: Please note: Given all new students are required to attend orientation events, we are required to start their appointments the week prior
B19: to the start of the semester - please make sure that your students are aware that they are expected to be in campus for those events.
B21: Is this student in their last semester? If so, select Yes, to let fiscal know that a 19.5hr RA may be needed.
B23: Step 2 | C23: Identify if the student starting in May is new to the student health insurance
B24: This question is asked to help determine if the student needs the student health insurance program (SHIP) for the summer.
B25: In general if a graduate student had SHIP coverage during the prior spring semester that coverage extends over to the next summer.
B26: Answering no to this question overrides the summer SHIP question later, helping reduce a possible error.
B28: Step 3 | C28: Enter the hours per week
B29: The maximum number of hours a student can earn on an appointment during the semester is 20.
B30: If you plan to pay your student extra hours in the summer, please enter these in the appropriate box (up to 40).
B32: Step 4 | C32: Identify graduate student rate of pay and whether the student is an Idaho resident
B33: The College of Natural Resources has set minimum rates for Masters and Doctoral Students. *
B34: In addition, doctoral students whom have passed their preliminary exams have a higher rate. Please select the appropriate option.
B35: The "other" option enables you to enter a higher rate of pay. This may be used if you have a program (e.g. IGERT) that requires higher rates or if
B36: for whatever reason you elect to pay the students more. You must select the "other" option here to "turn on" the other rate of pay box.
B37: * If you are bound to a set annual rate by your grant, you can also use the "other" category to force a lower value.
B38: ** If this is a MOSS student, please select what kind and manually enter in the MOSS fees in the lower sections.
B40: Step 5 | C40: If applicable - enter partial support amounts
B41: If you plan to cover part of a student's resident tuition (up to 100% of the value) or part of their SHIP costs, please enter these partial numbers
B42: into these green areas. ** When filling out "partials" please do not exceed 100% of "yes" values **
B44: Step 6 | C44: Summer credit
B45: If you plan to cover the cost of the 1 credit required for summer enrollment, please select yes.
B47: Step 7 | C47: Teaching assistantship information (if applicable)
B48: If you plan to offer the student a fall or spring teaching assistantship, please enter the hours here.
B49: If planning to allocate a TA to a student - you must obtain a signature from your department chair.
B50: Please note that TA's do not automatically receive resident tuition/fee payments. If in doubt contact your department chair.
B52: 7b | C52: Does the Student receive a 10hr TH/IH Appointment?
B53: If you plan to offer the student up to a 10hr TH/IH appointment, please enter that information here.
B54: As per COGS rules a maximum of 10hrs of TH/IH is allow on top of a RA or TA appointment.
B56: Step 8 | C56: Budgets and approvals
B57: Please enter your budget information. Once you are okay with this information save the file as "Fiscal_Student-Surname". Then write in your name and date of approval.
B58: Then send the file to your fiscal representative in the college to check it - after approval they will also write in their name and date of approval.
B59: Once all approvals are achieved, email the final form to cnr-drgs@uidaho.edu and an offer letter will be generated for your final approval.

Sheet Worksheet
B2: (1) Please select options. | D2: Select Closest Appointment Dates (from drop down): | H2: Does Student ONLY Need 1 Credit? | K2: (2) Is the Summer Starting Student New to SHIP?
F3: RA: August to August | H3: No | K3: Yes
B7: Students Name: | C7: Joe Vandal | I7: Select Student Type: | K7: Program | L7: If MOSS what Type? | M7: MOSS Fee Each Semester
I8: Masters | K8: Natural Resources | L8: No | M8: ='DO NOT EDIT'!D20 -> 0
B9: (3) | D9: =IF('DO NOT EDIT'!C22<2, "Enter 20 but ADD to Notes if 19.5 hr/wk (1 credit in last semester) RA Needed","") -> 
B10: RA appointment date range: | D10: ='DO NOT EDIT'!D5 -> August 19th 2019 to August 15th 2020 | G10: Hours | H10: (4) | I10: Select Rate Type: | K10: Is this Student an Idaho Resident?
B11: Enter FALL hrs/wk (max 20): | D11: 20 | E11: Weeks: | F11: 18 | G11: =D11*F11 -> 360 | I11: Masters | K11: NO | L11: From Rates Sheet:
B12: Enter Christmas hrs/wk: | D12: 20 | E12: Weeks: | F12: 3 | G12: =D12*F12 -> 60 | L12: Rate Type | M12: =I11 -> Masters
B13: Enter SPRING hrs/wk: | D13: 20 | E13: Weeks: | F13: 18 | G13: 360 | L13: Rate | M13: ='DO NOT EDIT'!$D$4 -> 17.57
B14: Enter reg SUMMER hrs/wk: | D14: 20 | E14: Weeks: | F14: 14 | G14: 280 | H14: If you selected "other" and wish to pay the student at a $/hr rate
B15: Enter extra summer hrs/wk: | D15: 0 | E15: Weeks: | F15: 14 | G15: 0 | H15: higher than the MINIMUM CNR rate, please enter that here ---> | M15: 0
B16: Amount to Student: | D16: Add Comp: | G16: =SUM(G11:G15) -> 1060 | H16: =G16+(L33*18)+(M33*18) -> 1060 | I16: [Total Hours Check]
B18: =(D11*F11*M13)+(D12*F12*M13)+(D13*M13*F13)+(D14*F14*M13)+(D15*F15*M13) -> 18624.2 | E18: Stipend, with payments made every 2 weeks | I18: Please note: UI Rates Change in June Each Year | M18: (6)
D19: =IF(I21>1, "FALL % TOO HIGH!!!","") ->  | F19: Fall | I19: (5) | J19: Spring | M19: Summer
B20: =IF(I21>'DO NOT EDIT'!C50, "FALL TUITION TOO HIGH!!!","") ->  | D20: =IF('DO NOT EDIT'!I8<'DO NOT EDIT'!M8,'DO NOT EDIT'!M8,'DO NOT EDIT'!I8) -> 17636 | F20: Waive full non-resident tuition? | I20: Partial % | J20: Waive full non-resident tuition? | L20: Partial % | M20: Provide SHIP?
B21: =IF(L21>'DO NOT EDIT'!C50, "SPRING TUITION TOO HIGH!!!","") ->  | D21: =IF(L21>1, "SPRING % TOO HIGH!!!","") ->  | F21: Yes | I21: =(D11+L33+L34)/20 -> 1 | K21: Yes | L21: =(D13+M33+M34)/20 -> 1 | M21: Yes
B22: =IF(I23>'DO NOT EDIT'!C52, "FALL TUITION TOO HIGH!!!","") ->  | D22: =IF('DO NOT EDIT'!I9<'DO NOT EDIT'!M9,'DO NOT EDIT'!M9,'DO NOT EDIT'!I9) -> 9352 | F22: Provide resident tuition? | I22: Partial $ | J22: Provide resident tuition? | L22: Partial $
B23: =IF(L23>'DO NOT EDIT'!C52, "SPRING TUITION TOO HIGH!!!","") ->  | F23: Yes | I23: 0 | K23: Yes | L23: 0 | M23: Provide summer credit?
B24: =IF(I25>'DO NOT EDIT'!C54, "FALL SHIP TOO HIGH!!!","") ->  | D24: =IF('DO NOT EDIT'!I10<'DO NOT EDIT'!M10,'DO NOT EDIT'!M10,'DO NOT EDIT'!I10) -> 2248 | F24: Provide student health insurance? | I24: Partial $ | J24: Provide student health insurance? | L24: Partial $ | M24: Yes
B25: =IF(L25>'DO NOT EDIT'!C54, "SPRING SHIP TOO HIGH!!!","") ->  | F25: Yes | I25: 0 | K25: Yes | L25: 0
D26: ='DO NOT EDIT'!M11 -> 520
F28: Please Enter Amount of MOSS Program Fee Provided | K28: Please Enter Amount of MOSS Program Fee Provided
D29: =(F29+K29) -> 0 | F29: 0 | K29: 0
I31: (7) | K31: Teaching Assistantship Information (Each Semester = 19.5 wks)
B32: =((L33+L34)*L36*19.5)+((M33+M34)*M36*19.5) -> 0 | K32: HOURS per TA per week | L32: Fall | M32: Spring
F33: Temporary Help (TH/IH) Max 10 hrs per semester | K33: TA APPOINTMENT 1 (10hr/wk) | L33: 0 | M33: 0
F34: HOURS per TH/IH per week | G34: Fall | H34: Spring | K34: TA APPOINTMENT 2 (10hr/wk) | L34: 0 | M34: 0
B35: =(G35*F11*G36)+(H35*F13*H36) -> 0 | F35: TH/IH APPOINTMENT 1 (10hr/wk) | G35: 0 | H35: 0 | K35: IF FT (20hr/wk) TA - FILL OUT BOTH ROWS THE SAME
F36: Rate | G36: 0 | H36: 0 | K36: AVERAGE TA Rate: | L36: =14000/39/20 -> 17.94871795 | M36: =14000/39/20 -> 17.94871795
K37: TA Rate is default rate BUT can be overwritten
D38: =(B32+B18+B35)*0.038 -> 707.7196 | F38: Fringe Benefits (3.8%)
D39: =SUM(B18:D38) -> 49087.9196 | E39: Total value including stipend, fringe, and additional compensation
B41: Return RA agreement by | F41: (8) | I41: Budget # paying fees & insurance
B42: Budget # paying stipend | I42: Budget # for background check
I43: Notes (if needed): If TA funding included please have Department Chair indicate approval at bottom
B44: Major Professor's (Type)
B46: Major Professor's approval: | D46: //s
B48: Fiscal Services approval: | D48: //s | I48: Chair Approval (if TA funding included):
C50: Fast Facts
C51: Resident Tuition (per semester) | F51: ='DO NOT EDIT'!C52 -> 4676 | I51: Current SHIP Rates (semester) | K51: ='DO NOT EDIT'!C54 -> 899
C52: MOSS Certificate (per semester) | F52: ='DO NOT EDIT'!G42 -> 8141 | G52: The MOSS Program Fee Replaces Resident Tuition
C53: MOSS MNR (per semester) | F53: ='DO NOT EDIT'!G43 -> 10298 | G53: The MOSS Program Fee Replaces Resident Tuition
C54: Non-Resident Tuition (per semester) | F54: ='DO NOT EDIT'!C50 -> 8818 | I54: Summer Credit | K54: ='DO NOT EDIT'!C64 -> 520

Sheet DO NOT EDIT (hidden)
A1: Rates Sheet - links from Worksheet
B3: Links | C3: Index Value | D3: Rates | F3: =IF('DO NOT EDIT'!I8<'DO NOT EDIT'!M8,'DO NOT EDIT'!M8,'DO NOT EDIT'!I8) -> 17636
A4: Degree | B4: =Worksheet!M12 -> Masters | C4: =IF(B4=B28,1, IF(B4=B29,2, IF(B4=B30,3, IF(B4=B31, 4)))) -> 1 | D4: =INDEX(C28:C31, MATCH(B4,B28:B31,0)) -> 17.57
A5: AY/CY | B5: =Worksheet!F3 -> RA: August to August | C5: =IF(B5=B33,1, IF(B5=B34,2, IF(B5=B35,3, IF(B5=B36, 4, IF(B5=B37,5))))) -> 3 | D5: =INDEX(C33:C41, MATCH(B5,B33:B41,0)) -> August 19th 2019 to August 15th 2020 | I5: Calculations
A6: Summer | B6: =Worksheet!K3 -> Yes | C6: =IF(B6=B45,1,IF(B6=B46,2)) -> 1 | D6: =INDEX(C45:C46, MATCH(B6,B45:B46,0)) -> Summer SHIP
A7: Fall 2017 | G7: Partial F | H7: Partial S | I7: Total | J7: Fall | K7: Spring | L7: Summer | M7: Total
A8: Non-resident tuition | B8: =Worksheet!F21 -> Yes | C8: =IF(B8=A50,1,IF(B8=A51,2)) -> 1 | D8: =INDEX(C50:C51, MATCH(B8,A50:A51,0)) -> 8818 | F8: Non-resident tuition | G8: =IF(Worksheet!I21>0,(Worksheet!I21*'DO NOT EDIT'!D50),0) -> 8818 | H8: =IF(Worksheet!L21>0,(Worksheet!L21*'DO NOT EDIT'!D57),0) -> 8818 | I8: =G8+H8 -> 17636 | J8: =IF(C8<2,D50,G8) -> 8818 | K8: =IF(C12<2,D57,H8) -> 8818 | M8: =SUM(J8:L8) -> 17636
A9: Resident Fees | B9: =Worksheet!F23 -> Yes | C9: =IF(B9=A52,1,IF(B9=A53,2)) -> 1 | D9: =INDEX(C52:C53, MATCH(B9,A52:A53,0)) -> 4676 | F9: Resident Fees | G9: =IF(Worksheet!I23>0,Worksheet!I23,0) -> 0 | H9: =IF(Worksheet!L23>0,Worksheet!L23,0) -> 0 | I9: =G9+H9 -> 0 | J9: =IF(C9<2,D9,G9) -> 4676 | K9: =IF(C13<2,D13,H9) -> 4676 | M9: =SUM(J9:L9) -> 9352
A10: SHIP | B10: =Worksheet!F25 -> Yes | C10: =IF(B10=A54,1,IF(B10=A55,2)) -> 1 | D10: =INDEX(C54:C55, MATCH(B10,A54:A55,0)) -> 899 | F10: SHIP | G10: =IF(Worksheet!I25>0,Worksheet!I25,0) -> 0 | H10: =IF(Worksheet!L25>0,Worksheet!L25,0) -> 0 | I10: 0 | J10: =IF(C10<2,D10,G10) -> 899 | K10: =IF(C14<2,D14,H10) -> 899 | L10: =IF(C6>1,0,D17) -> 450 | M10: 2248
A11: Spring 2018 | F11: Credit | J11: =IF(C16<2,D16,0) -> 520 | M11: =SUM(J11:L11) -> 520
A12: Non-resident tuition | B12: =Worksheet!K21 -> Yes | C12: =IF(B12=A57,1,IF(B12=A58,2)) -> 1 | D12: =INDEX(C57:C58, MATCH(B12,A57:A58,0)) -> 8818
A13: Resident Fees | B13: =Worksheet!K23 -> Yes | C13: =IF(B13=A59,1,IF(B13=A60,2)) -> 1 | D13: =INDEX(C59:C60, MATCH(B13,A59:A60,0)) -> 4676 | F13: Moss Programming Fee | G13: =IF(Worksheet!F29>0,Worksheet!F29,0) -> 0 | H13: =IF(Worksheet!K29>0,Worksheet!K29,0) -> 0 | I13: =G13+H13 -> 0 | J13: =IF(C13<2,D13,G13) -> 4676 | K13: =IF(C17<2,D17,H13) -> 450 | M13: =SUM(J13:L13) -> 5126
A14: SHIP | B14: =Worksheet!K25 -> Yes | C14: =IF(B14=A61,1,IF(B14=A62,2)) -> 1 | D14: =INDEX(C61:C62, MATCH(B14,A61:A62,0)) -> 899
A15: Summer 2018
A16: Summer credit | B16: =Worksheet!M24 -> Yes | C16: =IF(B16=A66,1,IF(B16=A67,2)) -> 1 | D16: =INDEX(C64:C65, MATCH(B16,A64:A65,0)) -> 520
A17: SHIP | B17: =Worksheet!M21 -> Yes | C17: =IF(B17=A66,1,IF(B17=A67,2)) -> 1 | D17: =INDEX(C66:C67, MATCH(B17,A66:A67,0)) -> 450
A20: Moss Type | B20: =Worksheet!L8 -> No | C20: =IF(B20=F41, 1, IF(B20=F42,2, IF(B20=F43,3 ))) -> 1 | D20: =INDEX(G41:G43, MATCH(B20,F41:F43,0)) -> 0
A22: Just 1 Credit | B22: =Worksheet!H3 -> No | C22: =IF(B22=B45,1,IF(B22=B46,2)) -> 2
B26: CNR Depts / Degrees | C26: Rates | D26: Notes | F26: AY RA = 780 hrs @ 20 hr/week
F27: Full year RA = 780 AY + 520 full time summer hrs = 1300 total hrs
B28: Masters | C28: 17.57 | F28: Full year RA Requires 1 summer credit = $457/credit
B29: Doctorate | C29: 20.03 | F29: Suggested Rates:
B30: Doctorate Special | C30: 22.1 | F30: MS = $17.23, PhD = $19.64, PhD Special (passed prelims) = $21.67
B31: Other | C31: =Worksheet!M15 -> 0
B32: Appointment Type | C32: Date Range | F32: FY 17 Graduate Student Fees and Medical
B33: RA: January to January | C33: January 13th 2020 to January 9th 2021
B34: RA: May to May | C34: May 13th 2019 to May 16th 2020 | F34: Medical per semester | L34: 960
B35: RA: August to August | C35: August 19th 2019 to August 15th 2020 | F35: Medical summer | L35: 570
B36: RA: December to December | C36: December 23rd 2019 to December 19th 2020 | F36: Resident Fees | L36: =4111*2 -> 8222
F37: Summer Credit | L37: 457
B38: TA: Spring Semester only | C38: January 13th 2020 to May 16th 2020
B39: TA: Fall Semester only | C39: August 19th 2019 to December 21st 2019
B40: TA: Fall and Spring Semester | C40: August 19th 2019 to May 16th 2020 | F40: MOSS Classes | G40: Per semester
F41: No | G41: 0
F42: CERTIFICATE | G42: 8141
F43: MNR | G43: 10298
B44: Summer Start
B45: Yes | C45: Summer SHIP | F45: Program
B46: No | C46: No Summer SHIP | F46: Natural Resources
F47: Environmental Science | L47: Full-time (9-20 credits) non-resident tuition paid for Fall 2016 ($7,212)* and Spring 2017 ($7,212)*
A48: Rates | F48: MOSS
B49: Fall 2018 | D49: Resident Correction | L49: Resident Student fees paid for Fall 2016 ($4,234) and Spring 2017 ($4,234)
A50: Yes | B50: Non-resident tuition | C50: 8818 | D50: =C50*C70 -> 8818
A51: No | B51: =INDEX('DO NOT EDIT'!A50:A51,'DO NOT EDIT'!C8,0) -> Yes | C51: 0 | L51: Student fees paid for one summer 2017 credit ($470)
A52: Yes | B52: Resident Fees | C52: 4676
A53: No | B53: =INDEX('DO NOT EDIT'!A52:A53,'DO NOT EDIT'!C9,0) -> Yes | C53: 0 | L53: Personal student health insurance paid ($952 per semester + $570 in summer)
A54: Yes | B54: SHIP | C54: 899 | L54: Total value of the assistantship including stipend and additional compensation
A55: No | B55: =INDEX('DO NOT EDIT'!A54:A55,'DO NOT EDIT'!C10,0) -> Yes | C55: 0
B56: Spring 2019
A57: Yes | B57: Non-resident tuition | C57: 8818 | D57: =C57*C70 -> 8818
A58: No | B58: =INDEX('DO NOT EDIT'!A57:A58,'DO NOT EDIT'!C12,0) -> Yes | C58: 0
A59: Yes | B59: Resident Fees | C59: 4676
A60: No | B60: =INDEX('DO NOT EDIT'!A59:A60,'DO NOT EDIT'!C13,0) -> Yes | C60: 0
A61: Yes | B61: SHIP | C61: 899
A62: No | B62: =INDEX('DO NOT EDIT'!A61:A62,'DO NOT EDIT'!C14,0) -> Yes | C62: 0
B63: Summer 2018
A64: Yes | B64: Summer credit | C64: 520
A65: No | B65: =INDEX('DO NOT EDIT'!A64:A65,'DO NOT EDIT'!C16,0) -> Yes | C65: 0
A66: Yes | B66: SHIP | C66: 450 | D66: Only if Summer 2018 start
A67: No | B67: =INDEX('DO NOT EDIT'!A66:A67,'DO NOT EDIT'!C17,0) -> Yes | C67: 0
B69: Resident | C69: Index Value
B70: YES | C70: =IF(B73=B70,0, IF(B73=B71,1)) -> 1
B71: NO
B72: Value
B73: =Worksheet!K11 -> NO
